Cogmind - Beta 13 @@@ ROGUE MODE // 2024.07.16 @ 22:18:33 Player: polar Result: Destroyed by L-31 Rogue with Katana Performance ------------- Evolutions (2) 1000 Regions Visited (4) 800 Robots Destroyed (10) 50 Value Destroyed (208) 208 Prototype IDs (1) 20 Alien Tech Used (0) 0 Bonus (200) 200 TOTAL SCORE: 2278 Bonus ------- Entered Garrisons 200 Cogmind --------- Core Integrity 0/550 Matter 86/300 Energy 24/100 System Corruption 0% Temperature Cool (0) Movement Core (150) Ox2 Location -8/Garrison Parts ------- > --- POWER (1) -------- (None) > --- PROPULSION (2) --- (None) > --- UTILITY (6) ------ Utility Shielding Utility Shielding Hacking Suite > --- WEAPON (2) ------- Advanced EMP Blaster > --- INVENTORY (5) ---- EM Pulse Gun Advanced EMP Blaster Advanced EMP Blaster Mini Grenade Launcher Peak State ------------ > --- POWER ------------ (None) > --- PROPULSION ------- (None) > --- UTILITY ---------- Terrain Scanner Utility Shielding Utility Shielding Hacking Suite > --- WEAPON ----------- Advanced EMP Blaster > --- INVENTORY -------- EM Pulse Gun Advanced EMP Blaster Advanced EMP Blaster Mini Grenade Launcher [Rating: 11] Favorites ----------- Power None Propulsion None Utility Utility Shielding Device Terrain Scanner Hackware Hacking Suite Protection Utility Shielding Weapon Advanced EMP Blaster Ballistic Gun Light Assault Rifle Launcher Advanced EMP Blaster Build | -11 -10 -9 -8 -8 ------- Run | Yrd Mat Mat Mat Gar Slots Evolved 4 | . . 2 2 . Power . | . . . . . Propulsion . | . . . . . Utility 4 | . . 2 2 . Weapon . | . . . . . Parts Attached 13 | . 4 4 4 1 Power . | . . . . . Engine . | . . . . . Core . | . . . . . Reactor . | . . . . . Propulsion . | . . . . . Treads . | . . . . . Leg . | . . . . . Wheel . | . . . . . Hover . | . . . . . Flight . | . . . . . Utility 4 | . 2 1 1 . Device 1 | . . 1 . . Storage . | . . . . . Processor . | . . . . . Hackware 1 | . . . 1 . Protection 2 | . 2 . . . Artifact . | . . . . . Weapon 9 | . 2 3 3 1 Energy Gun . | . . . . . Energy Cannon . | . . . . . Ballistic Gun 1 | . 1 . . . Ballistic Cannon . | . . . . . Launcher 8 | . 1 3 3 1 Special Weapon . | . . . . . Impact Weapon . | . . . . . Slashing Weapon . | . . . . . Piercing Weapon . | . . . . . Special Melee Weapon . | . . . . . Unidentified Prototypes 1 | . . . 1 . Parts Lost 1 | . . . . 1 Power . | . . . . . Propulsion . | . . . . . Utility 1 | . . . . 1 Weapon . | . . . . . Highest Loss Streak 1 | . . . . 1 To Critical Strikes . | . . . . . Average Slot Usage (%) 34 | . 24 34 39 36 Device 4 | . . 11 9 2 Hackware 5 | . . . 7 9 Protection 18 | . 17 22 18 18 Launcher 4 | . 1 1 4 7 Naked Turns 29 | . 29 . . . Heaviest Build 9 | . 3 4 9 9 Greatest Support 3 | 3 3 3 3 3 Greatest Overweight (x) 2 | . . 1 2 2 Average Overweight (x) . | . . . . 1 Largest Inventory Capacity 5 | 5 5 5 5 5 Average Capacity 5 | 5 5 5 5 5 Most Carried 5 | 2 5 5 5 5 Average Carried 4 | . 4 4 4 4 Final Capacity 5 | 5 5 5 5 5 Final Carried 5 | 2 5 5 5 4 Class Distribution -------------------- 100% | Mutant Dominant Class ---------------- Mutant | -10/Materials Mutant | -9/Materials Mutant | -8/Materials Mutant | -8/Garrison Resources | -11 -10 -9 -8 -8 ----------- Run | Yrd Mat Mat Mat Gar Matter Collected 275 | 200 . 12 . 63 Remotely . | . . . . . Salvage Created 161 | . 10 15 16 120 Parts 21 | . 6 4 4 7 Haulers Intercepted . | . . . . . Recyclers Shooed . | . . . . . Parts Field Recycled . | . . . . . Retrieved Matter . | . . . . . Parts Self-Destructed . | . . . . . Prevented . | . . . . . Kills | -11 -10 -9 -8 -8 ------- Run | Yrd Mat Mat Mat Gar Combat Hostiles Destroyed 10 | . 3 3 2 2 AOE 10 | . 3 3 2 2 Classes Destroyed 3 | . 1 . 1 1 Swarmer 6 | . 3 3 . . Cutter 2 | . . . 2 . Grunt 2 | . . . . 2 Best Kill Streak 3 | . 3 3 2 1 Combat Bots Only 3 | . 3 3 2 1 Max Kills in Single Turn 2 | . 2 2 1 1 Gunslinging . | . . . . . Exploded 2 | . 2 2 1 1 Melee . | . . . . . Uniques/NPCs Destroyed . | . . . . . Combat | -11 -10 -9 -8 -8 -------- Run | Yrd Mat Mat Mat Gar Hostile Shots Fired 46 | . 5 10 16 15 Missed 10 | . 2 1 5 2 Damage Taken 915 | . 89 130 354 342 Core 699 | . 35 99 320 245 Absorbed by Shields 67 | . . . . 67 Redirected to Shielding 13 | . . 2 6 5 Core Remaining (%) 87 | 100 86 75 . . Volleys Fired 21 | . 2 5 5 9 Largest 2 | . 2 1 1 1 Hottest 50 | . 50 30 30 36 Shots Fired 23 | . 4 5 5 9 Gun 2 | . 2 . . . Cannon . | . . . . . Launcher 21 | . 2 5 5 9 Special . | . . . . . Kinetic 2 | . 2 . . . Thermal . | . . . . . Explosive 12 | . 2 5 5 . Electromagnetic 9 | . . . . 9 Robot Hit Streak 2 | . 2 . 2 2 Robot Miss Streak 1 | . 1 . 1 1 Penetration Max . | . . . . . Secondary Targets . | . . . . . Shots Hit Robots 7 | . 3 . 2 2 Core Hits 12 | . 3 3 2 4 Critical Kills . | . . . . . Critical Parts Destroyed . | . . . . . Critical Strikes . | . . . . . Melee Attacks . | . . . . . Impact . | . . . . . Slashing . | . . . . . Piercing . | . . . . . Sneak Attacks . | . . . . . Combat Hostiles . | . . . . . Follow-up Attacks . | . . . . . Damage Inflicted 719 | . 187 154 175 203 Guns 8 | . 8 . . . Cannons . | . . . . . Explosions 708 | . 176 154 175 203 Melee . | . . . . . Ramming 3 | . 3 . . . Kinetic 8 | . 8 . . . Thermal . | . . . . . Explosive 505 | . 176 154 175 . Electromagnetic 203 | . . . . 203 Impact . | . . . . . Slashing . | . . . . . Piercing . | . . . . . Highest Corruption . | . . . . . Average Corruption . | . . . . . Corruption Purged . | . . . . . Corruption Blocked . | . . . . . Overload Shots . | . . . . . Overflow Damage 78 | . . 15 63 . Projectiles . | . . . . . Explosions 78 | . . 15 63 . Melee . | . . . . . Knockbacks . | . . . . . Impact . | . . . . . Kinetic . | . . . . . Secondary . | . . . . . Self-Inflicted Damage 284 | . 62 43 107 72 Shots 12 | . 2 3 3 4 Rammed 1 | . 1 . . . Targets Rammed 1 | . 1 . . . Kicked . | . . . . . Crushed . | . . . . . Highest Temperature 8 | . . 8 . . Average Temperature 5 | . . 5 . . Received Heat Transfer 105 | . 6 36 9 54 Siege Activations . | . . . . . Robots Corrupted . | . . . . . Combat Hostiles . | . . . . . Parts Fried 1 | . . . . 1 Impact Corruptions . | . . . . . Robots Melted . | . . . . . Combat Hostiles . | . . . . . Parts Melted . | . . . . . Heat Transferred . | . . . . . Parts Sabotaged . | . . . . . Parts Stolen . | . . . . . Parts Stripped . | . . . . . Power Chain Reactions 2 | . . . . 2 Alert | -11 -10 -9 -8 -8 ------- Run | Yrd Mat Mat Mat Gar Peak Influence 229 | . 155 224 200 229 Initial 130 | . . 65 94 130 Average 135 | . 43 112 119 188 Maximum Alert Level 1 | . . 1 1 1 Low Security (%) 67 | 100 100 80 93 44 Level 1 32 | . . 19 6 55 Level 2 . | . . . . . Level 3 . | . . . . . Level 4 . | . . . . . Level 5 . | . . . . . High Security . | . . . . . Max Security . | . . . . . Squads Dispatched 3 | . 1 . 2 . Investigation . | . . . . . Extermination . | . . . . . Reinforcement 3 | . 1 . 2 . Assault . | . . . . . Garrison . | . . . . . Intercept . | . . . . . Searches Triggered . | . . . . . Construction Impeded . | . . . . . Haulers Reinforced . | . . . . . Active Scanning Responses . | . . . . . Cargo Convoy Interrupts . | . . . . . Stealth | -11 -10 -9 -8 -8 --------- Run | Yrd Mat Mat Mat Gar Distress Signals . | . . . . . Communications Jammed . | . . . . . Distress Signals . | . . . . . Times Spotted 25 | . 7 5 8 5 Peak Tracking Total 6 | . 4 5 6 2 Tactical Retreats 2 | . . . 1 1 Traps | -11 -10 -9 -8 -8 ------- Run | Yrd Mat Mat Mat Gar Traps Triggered 4 | . . . . 4 Indirectly 1 | . . . . 1 Trap Hack Attempts . | . . . . . Triggered . | . . . . . Disarmed . | . . . . . Reprogrammed . | . . . . . Reused . | . . . . . Traps Extracted . | . . . . . Installed . | . . . . . Triggered . | . . . . . Machines | -11 -10 -9 -8 -8 ---------- Run | Yrd Mat Mat Mat Gar Machines Disabled 2 | . 2 . . . Max in Single Turn 1 | . 1 . . . Machines Repaired . | . . . . . Machines Dismantled . | . . . . . Machines Sabotaged . | . . . . . Overloaded Fab Kills . | . . . . . Hacking | -11 -10 -9 -8 -8 --------- Run | Yrd Mat Mat Mat Gar Machines Accessed 10 | . 3 5 2 . Terminals 6 | . 2 4 . . Fabricators . | . . . . . Repair Stations . | . . . . . Recycling Units 3 | . 1 1 1 . Scanalyzers . | . . . . . Garrison Access 1 | . . . 1 . Total Hacks 23 | . 6 15 2 . Successful 12 | . 2 8 2 . Failed 11 | . 4 7 . . Catastrophic 2 | . 1 1 . . Database Lockouts . | . . . . . Manual 12 | . 4 8 . . Terminals 15 | . 4 11 . . Fabricators . | . . . . . Repair Stations . | . . . . . Recycling Units 7 | . 2 4 1 . Scanalyzers . | . . . . . Garrison Access 1 | . . . 1 . Terminal Hacks 2 | . . 2 . . Branch Access Points 1 | . . 1 . . Terminal Index 1 | . . 1 . . Fabricator Hacks . | . . . . . Repair Station Hacks . | . . . . . Recycling Unit Hacks 6 | . 2 3 1 . Process 1 | . . 1 . . Report Inventory 3 | . 1 1 1 . Retrieve Matter 1 | . . 1 . . Retrieve Components 1 | . 1 . . . Scanalyzer . | . . . . . Garrison Access Hacks 1 | . . . 1 . Unlock Access 1 | . . . 1 . Unauthorized Hacks 3 | . . 3 . . Terminals 3 | . . 3 . . Track 1 | . . 1 . . Botnet 2 | . . 2 . . Fabricators . | . . . . . Repair Stations . | . . . . . Recycling Units . | . . . . . Scanalyzers . | . . . . . Garrison Access . | . . . . . Data Cores Recovered . | . . . . . Used . | . . . . . Hacking Detections 8 | . 2 5 1 . Full Trace Events 1 | . . 1 . . Feedback Events . | . . . . . Feedback Blocked . | . . . . . Robot Schematics Acquired . | . . . . . Robots Built . | . . . . . Authchips . | . . . . . Time . | . . . . . Total Robot Build Rating . | . . . . . Part Schematics Acquired . | . . . . . Parts Built . | . . . . . Authchips . | . . . . . Time . | . . . . . Total Part Build Rating . | . . . . . Parts Repaired . | . . . . . Time . | . . . . . Parts Recycled . | . . . . . Recycled Matter 44 | . . 44 . . Retrieved Matter . | . . . . . Retrieved Components 3 | . 3 . . . Parts Scanalyzed . | . . . . . Part Schematics Acquired . | . . . . . Parts Damaged . | . . . . . Bothacking | -11 -10 -9 -8 -8 ------------ Run | Yrd Mat Mat Mat Gar Used RIF Installer . | . . . . . Robots Hacked . | . . . . . Non-combat . | . . . . . Combat . | . . . . . Robot Hacks Applied . | . . . . . Relay Couplers Released . | . . . . . Fabnet Peak Effective % . | . . . . . Robots Rewired . | . . . . . Allies Hacked . | . . . . . Hacks Repelled . | . . . . . Allies | -11 -10 -9 -8 -8 -------- Run | Yrd Mat Mat Mat Gar Total Allies . | . . . . . Largest Group . | . . . . . Highest-Rated Group . | . . . . . Highest-Rated Ally . | . . . . . Total Orders . | . . . . . Ally Attacks . | . . . . . Total Damage . | . . . . . Kills . | . . . . . Allies Corrupted . | . . . . . Allies Melted . | . . . . . Intel | -11 -10 -9 -8 -8 ------- Run | Yrd Mat Mat Mat Gar Robot Analysis Total . | . . . . . Derelict Logs Recovered . | . . . . . Drone Launches . | . . . . . Drone Recoveries . | . . . . . Exploration | -11 -10 -9 -8 -8 ------------- Run | Yrd Mat Mat Mat Gar Turns Passed 806 | 32 116 186 82 390 Spaces Moved 908 | 60 196 334 77 241 Core 908 | 60 196 334 77 241 Treads . | . . . . . Legs . | . . . . . Wheels . | . . . . . Hover . | . . . . . Flight . | . . . . . Fastest Speed 50 | 50 50 50 50 50 Average Speed 69 | 50 50 50 74 115 Slowest Speed 150 | 50 50 100 150 150 Overloaded Moves . | . . . . . Propulsion Burnouts . | . . . . . Robots Hopped . | . . . . . Cave-ins Triggered . | . . . . . Exploration Rate (%) 23 | 4 43 32 13 27 Regions Visited 4 Branch Regions . Pre-discovered Areas . | . . . . . Known Exits Taken 1 | . . . 1 . Unknown Exits Taken 3 | 1 1 1 . . Scrap Searched . | . . . . . Spaces Dug 71 | . . 36 24 11 Terrain Destroyed 118 | . 10 46 51 11 Melee . | . . . . . Projectile . | . . . . . AOE 118 | . 10 46 51 11 Terrain Rammed . | . . . . . Walls Destroyed . | . . . . . Machines Disabled . | . . . . . Actions | -11 -10 -9 -8 -8 --------- Run | Yrd Mat Mat Mat Gar Total 1060 | 61 209 349 97 344 Wait 67 | . 1 1 3 62 Move 905 | 59 196 333 77 240 Hop . | . . . . . Pick Up 10 | 2 4 1 3 . Fast Attach 4 | . 3 . 1 . Attach 8 | . 1 4 2 1 Detach 7 | . 1 4 2 . Swap 1 | . . . 1 . Drop 5 | . 1 1 3 . Fire 21 | . 2 5 5 9 Melee . | . . . . . Ram . | . . . . . Kick . | . . . . . Crush . | . . . . . Escape Stasis 32 | . . . . 32 Rewire . | . . . . . Trap . | . . . . . Miscellaneous . | . . . . . Route ------- -11/Scrapyard -10/Materials -9/Materials (discovered 3 exits: *Mat / Min x2) -8/Materials -8/Garrison (discovered 1 exit: [*Fac]) History --------- Turn | Location | Event 5 | -11/Scrapyard | Discovered new exit (range 15) 33 | -11/Scrapyard | Entered Materials 146 | -10/Materials | Discovered new exit (range 7) 149 | -10/Materials | Entered another Materials area 149 | -9/Materials | Evolved 2 slots: Utility x2 299 | -9/Materials | Identified exit to Mines 302 | -9/Materials | Build established: Mutant 319 | -9/Materials | Discovered new exit (range 12) 335 | -9/Materials | Entered another Materials area 335 | -8/Materials | Evolved 2 slots: Utility x2 413 | -8/Materials | Core integrity fell below 50% 417 | -8/Materials | Identified exit to Garrison 417 | -8/Materials | Entered Garrison 445 | -8/Garrison | Triggered checkpoint 729 | -8/Garrison | Discovered new exit (range 15) 750 | -8/Garrison | Attempted to access garrison exit controls, blocked by remote lockdown 786 | -8/Garrison | Triggered checkpoint 803 | -8/Garrison | Core integrity fell below 20% 807 | -8/Garrison | Destroyed by L-31 Rogue with Katana Last Messages --------------- 00711_ Field strength at 22. 00712_ Field strength at 16. 00713_ Field strength at 10. 00714_ Field strength at 4. 00715_ Stasis field depleted. 00729_ EXIT=FOUND 00750_ Attempting to access garrison exit controls... 00750_ Remote lockdown engaged. 00786_ Beams of light sweep through the air. An alarm sounds. 00788_ Triggered Stasis Trap. 00788_ A bubble of rippling energy engulfs the area. 00788_ Field strength at 94. 00803_ Stasis Trap short circuited. 00803_ A bubble of rippling energy engulfs the area. 00805_ Field strength at 29. 00806_ Field strength at 23. Map ----- +----------------------------------------------------+ | ?????????????????????????????????????????????????? | | ?????????????????????????????????????????????????? | | ?????????????????????????????????????????????????? | | ?????????????????????????????????????????????????? | | ?????????????????????????????????????????????????? | | ?????????????????????????????????????????????????? | | ?????????????????????????????????????????????????? | | ?????????????????????????????????????????????????? | | ?????????????????????????????????????????????????? | | ??????????????????????????# ????????????????????? | | ?????????????????????????? ????????????????????? | | ?????????????????????????? #???????????????????? | | ?????????????????????????? T???????????????????? | | ??????????????????????????# #???????????????????? | | ??????????????????????????# #???????????????????? | | ??????????????????????????# #???????????????????? | | ??????????????????????????# #???????????????????? | | ??????????????????????????# #???????????????????? | | ??????????????????????????" #???????????????????? | | ??????????????????????????" #???????????????????? | | ??????????????????????????" #??????????????????## | | ??????????????????????????# #??????????????????# | | ????????????????########### #################### | | ????????????????# | | ????????????????# ll | | ????????????????# @^ | | ????????????????# #######;###################### | | ????????????????# #????????????????????????????? | | ????????????????# #????????????????????????????? | | ????????????????# #????????????????????????????? | | ????????????????# #????????????????????????????? | | ????????????????# #????????????????????????????? | | ????????????????# #????????????????????????????? | | ?????######""""## #????????????????????????????? | | ?????# #????????????????????????????? | | ???? #????????????????????????????? | | ???? #????????????????????????????? | | ?????# ## ## #????????????????????????????? | | ?????# ## ## ###??????????????????????????? | | ?????" #??????????????????????????? | | ?????" #??????????????????????????? | | ?????" #??????????????????????????? | | ?????" #??????????????????????????? | | ?????# ## ^ ## ###??????????????????????????? | | ?????# ??## ^ ## ###########??????????????????? | | ????? #??????????????????? | | ????? #??????????????????? | | ????? ###"#### #??????????????????? | | ????#######""""######?# #??# ###????????????????? | | ?????????????????# #### ##?# ?????????????????? | +----------------------------------------------------+ Best States ------------- Heat Dissipation 31 Energy Generation 5 Energy Capacity 100 Matter Stores 300 Matter Capacity 300 Sight Range 16 Terrain Scan Range 14 Terrain Scan Density 10 Utility Shielding 33 Evasion (%) 50 Offensive Hacking 10 Item Schematics ----------------- None Robot Schematics ------------------ None Fabricated ------------ Nothing Alien Tech Used ----------------- None Achievements -------------- None Challenges ------------ None Game ------ Seed AdvancedNeutronGuard Manual? 0 Play Time 00:15:06 Cumulative 235.2 hours Start 2024.07.16 @ 19:52:40 End 2024.07.16 @ 22:18:33 Sessions 1 Manual Loads 0 Difficulty Rogue Special Mode None Game No. 90 Rogue 89 Adventurer 0 Explorer 1 Win Type - Total 6 Types 4/0/1/1/0/0/0/0/0 Lore% 78 Gallery% 78 Achievement% 68 Wizard Run 0 Options --------- Layout 2 ASCII 0 Keyboard 0 Movement Numpad Keybinds 0 Fullscreen 1 Font 24/Smallcaps Map View 50x44 Zoom Use 0% Tactical HUD 1 Map Filters NONE Filters NONE Steam 0 RUN: f142da3f-875f-43b6-8b55-5c7836b33160